[Event "World Junior U20 Open 2018"]
[Site "Gebze"]
[Date "2018.09.11"]
[Round "7.35"]
[White "Kamer, Kayra"]
[Black "Lagunow, Raphael"]
[Result "0-1"]
[ECO "A30"]
[WhiteElo "2205"]
[BlackElo "2403"]
[Annotator "ChessBase"]
[PlyCount "80"]
[EventDate "2018.09.05"]
[EventType "swiss"]
[EventCountry "TUR"]
[SourceTitle "playchess.com"]
[Source "ChessBase"]
[SourceQuality "1"]
[TimeControl "40/5400+30:1800+30"]

1. Nf3 {[%emt 0:00:30]} c5 {[%emt 0:03:30]} 2. c4 {[%emt 0:00:00]} g6 {[%emt 0:00:30]} 3. d4 {[%emt 0:00:00]} cxd4 {[%emt 0:00:30]} 4. Nxd4 {[%emt 0:00:30]} Bg7 {[%emt 0:00:30]} 5. g3 {[%emt 0:00:00]} Nc6 {[%emt 0:00:30]} 6. Nb3 {[%emt 0:00:00]} d6 {[%emt 0:07:30]} 7. Bg2 {[%emt 0:00:30]} Bd7 {[%emt 0:03:30]} 8. O-O {[%emt 0:00:30]} b6 {[%emt 0:01:30]} 9. Nc3 {[%emt 0:02:30]} Rc8 {[%emt 0:05:30]} 10. f4 {[%emt 0:01:30]} Bxc3 {[%emt 0:09:30]} 11. bxc3 {[%emt 0:00:00]} Nf6 {[%emt 0:01:30]} 12. e4 {[%emt 0:01:00]} Be6 {[%emt 0:02:30]} 13. Nd4 {[%emt 0:04:30]} Nxd4 {[%emt 0:05:30]} 14. cxd4 {[%emt 0:00:30]} Bxc4 {[%emt 0:00:30]} 15. Re1 {[%emt 0:00:30]} d5 {[%emt 0:00:30]} 16. e5 {[%emt 0:03:30]} Ne4 {[%emt 0:02:30]} 17. f5 {[%emt 0:02:30]} gxf5 {[%emt 0:22:30]} 18. Qh5 {[%emt 0:00:00]} Qd7 {[%emt 0:02:30]} 19. Bh6 {[%emt 0:05:00]} Rg8 {[%emt 0:03:30]} 20. Bf4 {[%emt 0:00:00]} Qe6 {[%emt 0:03:30]} 21. Bh3 {[%emt 0:02:00]} Qg6 {[%emt 0:00:30]} 22. Qf3 {[%emt 0:01:30]} h5 {[%emt 0:02:30]} 23. Rac1 {[%emt 0:03:30]} h4 {[%emt 0:01:05]} 24. Kg2 {[%emt 0:06:30]} hxg3 {[%emt 0:02:11]} 25. hxg3 {[%emt 0:00:00]} e6 {[%emt 0:03:31]} 26. Rh1 {[%emt 0:01:00]} Kd7 {[%emt 0:01:31]} 27. Qa3 {[%emt 0:00:00]} Nxg3 {[%emt 0:03:22]} 28. Qxa7+ {[%emt 0:10:00]} Rc7 {[%emt 0:02:13]} 29. Qa4+ {[%emt 0:00:00]} b5 {[%emt 0:00:59]} 30. Qa3 {[%emt 0:00:00]} Ne2+ {[%emt 0:05:09]} 31. Kh2 {[%emt 0:00:30]} b4 {[%emt 0:03:32]} 32. Qa4+ {[%emt 0:07:30]} Kd8 {[%emt 0:00:30]} 33. Rb1 {[%emt 0:00:30]} Nxd4 {[%emt 0:00:31]} 34. Qd1 {[%emt 0:01:30]} Bd3 {[%emt 0:00:30]} 35. Rb2 {[%emt 0:01:30]} Rc1 {[%emt 0:00:35]} 36. Rg2 {[%emt 0:07:30]} Rxd1 {[%emt 0:00:05]} 37. Rxd1 {[%emt 0:00:30]} Nf3+ {[%emt 0:00:30]} 38. Kh1 {[%emt 0:00:00]} Qh7 {[%emt 0:00:00]} 39. Rxg8+ {[%emt 0:01:00]} Qxg8 {[%emt 0:00:16]} 40. Rxd3 {[%emt 0:00:00]} Qg1# {[%emt 0:00:06]} 0-1

[Event "World Junior U20 Open 2018"]
[Site "Gebze"]
[Date "2018.09.11"]
[Round "7.36"]
[White "Nyambileg, Erdene-Ochir"]
[Black "Nikolovski, Nikola"]
[Result "1/2-1/2"]
[ECO "A70"]
[WhiteElo "1798"]
[BlackElo "2388"]
[Annotator "NA"]
[PlyCount "95"]
[EventDate "2018.09.05"]
[EventType "swiss"]
[EventCountry "TUR"]
[SourceTitle "playchess.com"]
[Source "ChessBase"]
[SourceQuality "1"]
[TimeControl "40/5400+30:1800+30"]

1. d4 {[%emt 0:00:30]} Nf6 {[%emt 0:04:30]} 2. c4 {[%emt 0:00:00]} c5 {[%emt 0:00:30]} 3. d5 {[%emt 0:00:00]} e6 {[%emt 0:00:00]} 4. Nc3 {[%emt 0:01:30]} exd5 {[%emt 0:00:00]} 5. cxd5 {[%emt 0:00:30]} d6 {[%emt 0:00:30]} 6. e4 {[%emt 0:00:00]} g6 {[%emt 0:00:00]} 7. Nf3 {[%emt 0:00:00]} Bg7 {[%emt 0:01:00]} 8. h3 {[%emt 0:00:30]} O-O {[%emt 0:00:00]} 9. Bd3 {[%emt 0:00:00]} Nh5 {[%emt 0:02:00]} 10. O-O {[%emt 0:08:00]} Nd7 {[%emt 0:02:30]} 11. Bg5 {[%emt 0:02:30] LiveBook: 109 Games A70: Modern Benoni: 6 e4 g6 7 Nf3} Bf6 {[%emt 0:00:30]} 12. Be3 {[%emt 0:08:30]} Re8 {[%emt 0:00:30]} 13. Be2 {[%emt 0:02:30]} (13. Qd2 Ne5 14. Be2 Nxf3+ 15. Bxf3 Ng7 16. a4 Bd7 17. Nb5 Qb6 18. Bf4 Bxb5 19. axb5 {½-½ (40) Batchuluun,T (2513)-Yilmaz,M (2616) Baku 2016}) 13... Bxc3 {[%emt 0:31:30]} 14. bxc3 {[%emt 0:00:00]} Rxe4 {[%emt 0:00:30]} 15. Nd2 {[%emt 0:20:00]} Rxe3 {[%emt 0:02:30]} 16. fxe3 {[%emt 0:01:30]} Nhf6 $146 {[%emt 0:01:30]} ({Predecessor:} 16... Ng3 $11 {remains equal.} 17. Rf3 {1-0 (44) Barseghyan,H (2442)-Poignot,Q (2246) Asnieres-sur-Seine 2017}) 17. e4 {[%emt 0:02:30]} Qe7 {[%emt 0:02:30]} 18. Qc2 {[%emt 0:04:30]} Ne5 {[%emt 0:02:30]} 19. Rf2 {[%emt 0:02:30]} b6 {[%emt 0:14:30]} 20. Raf1 {[%emt 0:02:30]} Nfd7 {[%emt 0:00:30]} 21. Rf4 {[%emt 0:16:30]} Bb7 {[%emt 0:06:30]} 22. Bb5 {[%emt 0:02:30]} Rf8 {[%emt 0:05:30]} 23. c4 {[%emt 0:04:30]} Nb8 {[%emt 0:02:31]} 24. Nf3 {[%emt 0:02:52]} Ned7 {[%emt 0:08:05]} 25. h4 {[%emt 0:01:12]} Bc8 {[%emt 0:00:24]} 26. h5 {[%emt 0:02:27]} g5 {[%emt 0:01:52]} 27. Rf5 {[%emt 0:04:42]} h6 {[%emt 0:00:07]} 28. Qd2 {[%emt 0:01:56]} f6 {[%emt 0:04:14]} 29. Qd3 {[%emt 0:05:25]} Ne5 {[%emt 0:04:48]} 30. Nxe5 {[%emt 0:00:27]} Bxf5 {[%emt 0:00:07]} 31. Rxf5 {[%emt 0:00:25]} dxe5 {[%emt 0:02:06]} 32. Rf2 {[%emt 0:01:34]} Nd7 {[%emt 0:00:59]} 33. Qh3 {[%emt 0:01:03]} Rf7 {[%emt 0:00:26]} 34. Qf5 {[%emt 0:00:10]} Nf8 {[%emt 0:00:18]} 35. Qc8 {[%emt 0:01:01]} Qd6 {[%emt 0:00:35]} 36. Be8 {[%emt 0:00:23]} Rc7 {[%emt 0:00:53]} 37. Qf5 {[%emt 0:01:07]} Kg7 {[%emt 0:00:14]} 38. Rf3 {[%emt 0:00:37]} Re7 {[%emt 0:00:29]} 39. Bc6 {[%emt 0:00:36]} Rc7 {[%emt 0:00:12]} 40. Ra3 {[%emt 0:00:00]} Qe7 {[%emt 0:00:00]} 41. Rb3 {[%emt 0:02:03]} Qd8 {[%emt 0:11:10]} 42. a4 {[%emt 0:04:30]} Kf7 {[%emt 0:01:37]} 43. Rb5 {[%emt 0:04:30]} Rc8 {[%emt 0:03:19]} 44. Qh3 {[%emt 0:02:30]} ({Besser ist} 44. a5 $1 $16) 44... a5 {[%emt 0:02:50]} 45. Rxb6 {[%emt 0:03:27]} (45. Qb3 $14) 45... Qxb6 {[%emt 0:01:31]} 46. Qxc8 {[%emt 0:00:04]} Qb1+ {[%emt 0:00:00]} 47. Kh2 {[%emt 0:01:04]} Qxe4 {[%emt 0:00:33]} 48. Qe8+ $11 {[%emt 0:02:58]} 1/2-1/2

[Event "World Junior U20 Open 2018"]
[Site "Gebze"]
[Date "2018.09.11"]
[Round "7.44"]
[White "Ozer, Omer Faruk"]
[Black "Milosevic, Milos"]
[Result "0-1"]
[ECO "C41"]
[WhiteElo "2388"]
[BlackElo "2292"]
[Annotator "RC"]
[PlyCount "90"]
[EventDate "2018.09.05"]
[EventType "swiss"]
[EventCountry "TUR"]
[SourceTitle "playchess.com"]
[Source "ChessBase"]
[SourceQuality "1"]
[TimeControl "40/5400+30:1800+30"]

1. e4 {[%emt 0:00:30]} e5 {[%emt 0:00:30]} 2. Nf3 {[%emt 0:01:30]} d6 {[%emt 0:00:00]} 3. d4 {[%emt 0:00:30]} exd4 {[%emt 0:00:00]} 4. Nxd4 {[%emt 0:00:30]} Nf6 {[%emt 0:00:00]} 5. Nc3 {[%emt 0:03:30]} Be7 {[%emt 0:00:00]} 6. Be2 {[%emt 0:00:30]} O-O {[%emt 0:00:30]} 7. O-O {[%emt 0:05:30]} Re8 {[%emt 0:00:00]} 8. Re1 {[%emt 0:00:30]} Bf8 {[%emt 0:00:00]} 9. Bf3 {[%emt 0:03:30]} Nbd7 {[%emt 0:04:30]} 10. g3 {[%emt 0:01:30]} c6 {[%emt 0:03:30]} 11. Bg2 {[%emt 0:01:30]} Nc5 {[%emt 0:04:30]} 12. b3 {[%emt 0:05:30]} a5 {[%emt 0:05:30]} 13. a4 {[%emt 0:01:30]} g6 {[%emt 0:00:30]} 14. Bb2 {[%emt 0:06:30]} Bg7 {[%emt 0:01:30]} 15. Qd2 {[%emt 0:00:30]} Qb6 {[%emt 0:01:30]} 16. h3 {[%emt 0:00:30]} Bd7 {[%emt 0:01:30]} 17. Kh1 {[%emt 0:18:30]} Rad8 {[%emt 0:01:30]} 18. g4 {[%emt 0:06:30]} Bc8 {[%emt 0:03:30]} 19. Rad1 {[%emt 0:02:30]} h6 {[%emt 0:15:30]} 20. Qc1 {[%emt 0:01:30]} d5 {[%emt 0:09:30]} 21. exd5 {[%emt 0:01:30]} Rxe1+ {[%emt 0:03:30]} 22. Rxe1 {[%emt 0:00:00]} cxd5 {[%emt 0:00:30]} 23. Ncb5 {[%emt 0:03:00]} Nfe4 {[%emt 0:09:30]} 24. f3 {[%emt 0:00:30]} Nd6 {[%emt 0:00:30]} 25. Nxd6 {[%emt 0:10:30]} Qxd6 {[%emt 0:02:30]} 26. Qd2 {[%emt 0:00:30]} b6 {[%emt 0:05:30]} 27. Nb5 {[%emt 0:04:48]} Qf8 {[%emt 0:05:30]} 28. Bxg7 {[%emt 0:00:32]} Qxg7 {[%emt 0:00:30]} 29. Qf4 {[%emt 0:00:20]} d4 {[%emt 0:07:28]} 30. Bf1 {[%emt 0:05:54]} Ne6 {[%emt 0:01:55]} 31. Qb8 {[%emt 0:01:23]} Qf6 {[%emt 0:02:39]} 32. Qxb6 {[%emt 0:00:16]} Qh4 {[%emt 0:00:28]} 33. Re4 {[%emt 0:05:20]} Rf8 {[%emt 0:01:47]} 34. Nxd4 {[%emt 0:07:35]} Ng5 {[%emt 0:01:21]} 35. Re2 {[%emt 0:00:13]} h5 {[%emt 0:06:00]} 36. Qf6 {[%emt 0:01:17]} hxg4 {[%emt 0:01:06]} 37. fxg4 {[%emt 0:00:31]} Bb7+ {[%emt 0:02:10]} 38. Bg2 {[%emt 0:00:47]} Qxh3+ {[%emt 0:00:39]} 39. Kg1 {[%emt 0:00:01]} Bxg2 {[%emt 0:01:07]} 40. Rxg2 {[%emt 0:00:00]} Qe3+ {[%emt 0:00:00]} 41. Kh2 {[%emt 0:03:33]} Re8 {[%emt 0:06:50]} 42. Re2 {[%emt 0:10:57]} Qh3+ {[%emt 0:05:30]} 43. Kg1 {[%emt 0:00:02]} Qxg4+ {[%emt 0:00:30]} 44. Kh1 {[%emt 0:00:01]} Rxe2 {[%emt 0:03:50]} 45. Nxe2 {[%emt 0:00:10]} Nf3 {[%emt 0:00:18]} 0-1

[Event "World Junior U20 Open 2018"]
[Site "Gebze"]
[Date "2018.09.11"]
[Round "7.45"]
[White "Thilakarathne, G M H"]
[Black "Miciano, John Marvin"]
[Result "0-1"]
[ECO "B07"]
[WhiteElo "2238"]
[BlackElo "2374"]
[Annotator "NA"]
[PlyCount "126"]
[EventDate "2018.09.05"]
[EventType "swiss"]
[EventCountry "TUR"]
[SourceTitle "playchess.com"]
[Source "ChessBase"]
[SourceQuality "1"]
[TimeControl "40/5400+30:1800+30"]

1. e4 {[%emt 0:00:30]} d6 {[%emt 0:00:30]} 2. d4 {[%emt 0:00:00]} Nf6 {[%emt 0:00:30]} 3. Nc3 {[%emt 0:00:00]} g6 {[%emt 0:00:30]} 4. Bg5 {[%emt 0:00:30]} Bg7 {[%emt 0:01:30]} 5. Qd2 {[%emt 0:00:30]} c6 {[%emt 0:00:30]} 6. O-O-O {[%emt 0:01:30]} O-O {[%emt 0:01:30]} 7. f4 {[%emt 0:00:30] B07: Pirc Defence: Miscellaneous Systems} (7. Bh6 Qa5 8. Bxg7 Kxg7 9. Kb1 Nbd7 10. h4 h5 11. f3 b5 12. Bd3 b4 13. Nce2 c5 14. g4 Qc7 15. dxc5 dxc5 {0-1 (66) Rublevsky,S (2702)-Mamedyarov,S (2736) Berlin 2015}) 7... b5 {[%emt 0:00:30]} 8. Bd3 {[%emt 0:05:30]} Qa5 {[%emt 0:05:30]} 9. Kb1 {[%emt 0:08:30]} b4 {[%emt 0:04:30]} 10. Nce2 {[%emt 0:00:30]} c5 {[%emt 0:02:30]} 11. Bxf6 $146 {[%emt 0:22:30]} ({Predecessor:} 11. dxc5 Qxc5 12. Nf3 Nc6 13. f5 Ng4 14. h3 Nge5 {1-0 (34) Stojanovic,D (2469)-Drljevic,L (2244) Budva 2009}) 11... exf6 {[%emt 0:06:30]} 12. f5 {[%emt 0:04:30]} Bb7 {[%emt 0:05:30]} (12... Ba6 $11 13. Bxa6 Nxa6) 13. h4 {[%emt 0:07:30]} gxf5 {[%emt 0:15:30]} 14. exf5 {[%emt 0:20:30]} Bd5 {[%emt 0:06:30]} 15. b3 {[%emt 0:05:58]} Nd7 {[%emt 0:03:30]} 16. Rh3 {[%emt 0:02:36]} Kh8 {[%emt 0:03:30]} 17. g4 {[%emt 0:04:16]} Nb6 {[%emt 0:01:30]} 18. Nf4 {[%emt 0:10:00]} c4 {[%emt 0:02:30]} 19. Be2 {[%emt 0:00:32]} (19. Nxd5 $11 Nxd5 20. Bxc4) 19... Rac8 {[%emt 0:02:30]} 20. Bf3 {[%emt 0:01:22]} Bh6 {[%emt 0:14:33]} ({Black should try} 20... Bxf3 $17 21. Nxf3 cxb3 22. axb3 Rc3) 21. g5 $1 {[%emt 0:00:33]} cxb3 {[%emt 0:02:53]} 22. axb3 {[%emt 0:00:39]} Nc4 {[%emt 0:01:30]} 23. bxc4 {[%emt 0:00:32]} Bxc4 {[%emt 0:00:08]} 24. Qg2 {[%emt 0:00:54]} Ba2+ {[%emt 0:11:43]} 25. Kc1 {[%emt 0:00:30]} Qa3+ {[%emt 0:00:00]} 26. Kd2 {[%emt 0:00:00]} Rxc2+ {[%emt 0:00:32]} 27. Ke1 {[%emt 0:00:00]} Rxg2 {[%emt 0:02:00]} 28. Bxg2 {[%emt 0:00:00]} b3 {[%emt 0:01:07]} 29. gxh6 {[%emt 0:00:02]} Qa5+ {[%emt 0:00:00]} 30. Kf2 {[%emt 0:00:44]} Qxf5 {[%emt 0:00:54]} 31. Nge2 {[%emt 0:00:16]} b2 {[%emt 0:00:27]} 32. Ra3 {[%emt 0:01:19]} b1=Q {[%emt 0:00:40]} 33. Rxb1 {[%emt 0:00:09]} Bxb1 {[%emt 0:01:08]} 34. Bh3 {[%emt 0:00:34]} Qb5 {[%emt 0:00:24]} 35. Rxa7 {[%emt 0:00:11]} Be4 {[%emt 0:01:19]} 36. Re7 {[%emt 0:01:54]} f5 {[%emt 0:01:02]} 37. Nh5 {[%emt 0:01:34]} Qd3 {[%emt 0:01:23]} 38. Bg2 {[%emt 0:00:25]} Bxg2 {[%emt 0:00:24]} 39. Kxg2 {[%emt 0:00:03]} Qd2 {[%emt 0:01:01]} 40. Nhf4 {[%emt 0:00:00]} Qe1 {[%emt 0:00:00]} 41. Rd7 {[%emt 0:02:27]} Qxh4 {[%emt 0:07:52]} 42. Rxd6 {[%emt 0:00:00]} Qe7 {[%emt 0:01:30]} 43. Rd5 {[%emt 0:02:00]} Qe3 {[%emt 0:01:30]} 44. Re5 {[%emt 0:00:30]} Rg8+ {[%emt 0:00:30]} 45. Kf1 {[%emt 0:00:30]} Qf3+ {[%emt 0:07:25]} 46. Ke1 {[%emt 0:00:00]} Ra8 {[%emt 0:01:36]} 47. Kd2 {[%emt 0:02:00]} f6 {[%emt 0:00:48]} 48. Re6 {[%emt 0:00:30]} Kg8 {[%emt 0:01:11]} 49. d5 {[%emt 0:02:30]} Kf7 {[%emt 0:05:59]} 50. Rc6 {[%emt 0:01:30]} Ra2+ {[%emt 0:03:49]} 51. Ke1 {[%emt 0:00:30]} Ra4 {[%emt 0:00:49]} 52. Rc7+ {[%emt 0:10:25]} Ke8 $19 {[%emt 0:00:19]} 53. Rc8+ {[%emt 0:08:54]} Kd7 {[%emt 0:00:45]} 54. Rh8 {[%emt 0:00:19]} Rxf4 {[%emt 0:00:47]} 55. Rxh7+ {[%emt 0:00:12]} Ke8 {[%emt 0:00:00]} 56. Nxf4 {[%emt 0:01:09]} Qxf4 {[%emt 0:00:00]} 57. Rh8+ {[%emt 0:00:14]} Kf7 {[%emt 0:00:18]} 58. h7 {[%emt 0:01:27]} Kg7 {[%emt 0:00:30]} 59. Rd8 {[%emt 0:00:00]} Kxh7 {[%emt 0:00:00]} 60. d6 {[%emt 0:00:15]} Qe3+ {[%emt 0:00:52]} 61. Kf1 {[%emt 0:00:08]} Qb6 {[%emt 0:00:06]} 62. Rd7+ {[%emt 0:00:13]} Kg6 {[%emt 0:00:22]} 63. Ke1 {[%emt 0:00:17]} f4 {[%emt 0:00:17]} 0-1

[Event "World Junior U20 Open 2018"]
[Site "Gebze"]
[Date "2018.09.11"]
[Round "7.46"]
[White "Can, Isik"]
[Black "Cadilhac, Igor Tokuichi Kikuc"]
[Result "1-0"]
[ECO "B35"]
[WhiteElo "2361"]
[BlackElo "2286"]
[Annotator "NA"]
[PlyCount "91"]
[EventDate "2018.09.05"]
[EventType "swiss"]
[EventCountry "TUR"]
[SourceTitle "playchess.com"]
[Source "ChessBase"]
[SourceQuality "1"]
[TimeControl "40/5400+30:1800+30"]

1. e4 {[%emt 0:00:30]} c5 {[%emt 0:00:30]} 2. Nf3 {[%emt 0:00:00]} g6 {[%emt 0:00:00]} 3. d4 {[%emt 0:00:00]} cxd4 {[%emt 0:00:00]} 4. Nxd4 {[%emt 0:00:00]} Nc6 {[%emt 0:00:00]} 5. Nc3 {[%emt 0:00:00]} Bg7 {[%emt 0:00:00]} 6. Be3 {[%emt 0:00:00]} Nf6 {[%emt 0:00:30]} 7. Bc4 {[%emt 0:00:00]} O-O {[%emt 0:00:30]} 8. Bb3 {[%emt 0:00:00]} Re8 {[%emt 0:00:30] B35: Sicilian: Accelerated Dragon with 5 Nc3: main line} 9. f3 {[%emt 0:01:00]} d5 {[%emt 0:00:00]} 10. exd5 {[%emt 0:15:30]} Nb4 {[%emt 0:00:00]} 11. Nde2 {[%emt 0:05:30]} e6 {[%emt 0:00:30]} 12. Bd4 {[%emt 0:05:30]} exd5 {[%emt 0:00:30]} 13. Qd2 $146 {[%emt 0:09:30]} ({Predecessor:} 13. O-O Be6 14. Bf2 d4 15. Nxd4 Bxb3 16. Nxb3 {½-½ (16) Jakovenko,D (2735)-Gelfand,B (2695) Poikovsky 2018}) 13... Nc6 {[%emt 0:15:30]} 14. O-O-O {[%emt 0:01:30]} Nxd4 {[%emt 0:00:30]} 15. Nxd4 {[%emt 0:00:30]} Be6 {[%emt 0:09:30]} 16. g4 {[%emt 0:07:30]} h5 {[%emt 0:36:30]} (16... Rc8 $14) 17. Nxe6 {[%emt 0:13:30]} fxe6 {[%emt 0:00:30]} 18. Qd3 {[%emt 0:04:30]} Kh7 {[%emt 0:05:30]} 19. Rhg1 {[%emt 0:06:30]} (19. h4 $18) 19... hxg4 {[%emt 0:05:30]} 20. fxg4 {[%emt 0:00:30]} Nd7 {[%emt 0:02:30]} 21. Qh3+ {[%emt 0:05:30]} Kg8 {[%emt 0:00:30]} 22. Nxd5 {[%emt 0:00:30]} Nc5 {[%emt 0:02:15]} 23. Nc3 {[%emt 0:09:09]} Nxb3+ {[%emt 0:02:08]} (23... Qg5+ $16 {might work better.} 24. Kb1 Rad8) 24. axb3 {[%emt 0:00:12]} Qa5 {[%emt 0:04:14]} 25. Kb1 {[%emt 0:00:12]} Rac8 {[%emt 0:09:33]} 26. Qd3 {[%emt 0:02:08]} Qg5 {[%emt 0:04:06] [#]} 27. h4 $18 {[%emt 0:02:19]} Qxh4 {[%emt 0:01:14]} 28. Qxg6 {[%emt 0:00:04]} Qf6 {[%emt 0:00:19]} 29. Qxf6 {[%emt 0:00:30]} Bxf6 {[%emt 0:00:03]} 30. Ne4 {[%emt 0:00:00]} Be5 {[%emt 0:01:23]} 31. Rd7 {[%emt 0:00:00]} Red8 {[%emt 0:00:00]} 32. Rxb7 {[%emt 0:00:28]} Rd4 {[%emt 0:00:11]} 33. Re1 {[%emt 0:00:14]} Rcd8 {[%emt 0:00:57]} 34. Rxa7 {[%emt 0:01:05]} Rd1+ {[%emt 0:00:19]} 35. Rxd1 {[%emt 0:00:30]} Rxd1+ {[%emt 0:00:30]} 36. Ka2 {[%emt 0:00:30]} Rc1 {[%emt 0:00:00]} 37. c3 {[%emt 0:02:11]} Re1 {[%emt 0:00:05]} 38. Nc5 {[%emt 0:00:51]} Bd6 {[%emt 0:00:32]} 39. b4 {[%emt 0:00:00]} e5 {[%emt 0:00:00]} 40. Rd7 {[%emt 0:00:00]} Bf8 {[%emt 0:00:00]} 41. Ne6 {[%emt 0:01:07]} e4 {[%emt 0:02:11]} 42. Rd8 {[%emt 0:00:30]} Kf7 {[%emt 0:00:00]} 43. Nxf8 {[%emt 0:00:30]} e3 {[%emt 0:00:00]} 44. Rd4 {[%emt 0:00:30]} Kxf8 {[%emt 0:00:30]} 45. Re4 {[%emt 0:00:30]} e2 {[%emt 0:00:30]} 46. b5 {[%emt 0:00:00]} 1-0

[Event "World Junior U20 Open 2018"]
[Site "Gebze"]
[Date "2018.09.11"]
[Round "7.47"]
[White "Baenziger, Fabian"]
[Black "Agdelen, Huseyin Can"]
[Result "1/2-1/2"]
[ECO "A20"]
[WhiteElo "2360"]
[BlackElo "2280"]
[Annotator "ChessBase"]
[PlyCount "60"]
[EventDate "2018.09.05"]
[EventType "swiss"]
[EventCountry "TUR"]
[SourceTitle "playchess.com"]
[Source "ChessBase"]
[SourceQuality "1"]
[TimeControl "40/5400+30:1800+30"]

1. c4 {[%emt 0:00:30]} e5 {[%emt 0:01:30]} 2. g3 {[%emt 0:00:00]} Nf6 {[%emt 0:00:30]} 3. Bg2 {[%emt 0:00:00]} d5 {[%emt 0:00:30]} 4. cxd5 {[%emt 0:00:30]} Nxd5 {[%emt 0:00:00]} 5. Nf3 {[%emt 0:00:00]} Nc6 {[%emt 0:01:00]} 6. O-O {[%emt 0:00:00]} Be7 {[%emt 0:04:30]} 7. d4 {[%emt 0:04:30]} exd4 {[%emt 0:15:30]} 8. Nxd4 {[%emt 0:00:30]} Nxd4 {[%emt 0:03:30]} 9. Qxd4 {[%emt 0:00:30]} Nf6 {[%emt 0:00:00]} 10. Qa4+ {[%emt 0:01:30]} c6 {[%emt 0:03:00]} 11. Rd1 {[%emt 0:00:30]} Bd7 {[%emt 0:03:30]} 12. Bg5 {[%emt 0:07:30]} O-O {[%emt 0:07:30]} 13. Nc3 {[%emt 0:02:30]} Qc8 {[%emt 0:18:30]} 14. Rac1 {[%emt 0:17:30]} Bh3 {[%emt 0:04:30]} 15. Bxf6 {[%emt 0:13:30]} Bxf6 {[%emt 0:01:30]} 16. Nd5 {[%emt 0:00:30]} Bg5 {[%emt 0:02:30]} 17. e3 {[%emt 0:01:30]} Bxg2 {[%emt 0:07:30]} 18. Kxg2 {[%emt 0:00:30]} Qf5 {[%emt 0:01:30]} 19. Nf4 {[%emt 0:02:30]} Rfe8 {[%emt 0:02:35]} 20. Qc2 {[%emt 0:00:30]} Qxc2 {[%emt 0:02:45]} 21. Rxc2 {[%emt 0:01:30]} Bxf4 {[%emt 0:00:30]} 22. gxf4 {[%emt 0:00:00]} Rad8 {[%emt 0:01:15]} 23. Rcd2 {[%emt 0:00:00]} Rxd2 {[%emt 0:00:08]} 24. Rxd2 {[%emt 0:00:30]} Kf8 {[%emt 0:00:00]} 25. Rd7 {[%emt 0:00:00]} Re7 {[%emt 0:00:09]} 26. Rd8+ {[%emt 0:00:00]} Re8 {[%emt 0:00:03]} 27. Rd7 {[%emt 0:00:30]} Re7 {[%emt 0:00:00]} 28. Rd8+ {[%emt 0:00:00]} Re8 {[%emt 0:00:07]} 29. Rd7 {[%emt 0:00:00]} Re7 {[%emt 0:00:04]} 30. Rd8+ {[%emt 0:00:00]} Re8 {[%emt 0:00:24]} 1/2-1/2

[Event "World Junior U20 Open 2018"]
[Site "Gebze"]
[Date "2018.09.11"]
[Round "7.48"]
[White "Vanczak, Tamas"]
[Black "Krishna Teja, N."]
[Result "0-1"]
[ECO "B19"]
[WhiteElo "2276"]
[BlackElo "2356"]
[Annotator "NA"]
[PlyCount "82"]
[EventDate "2018.09.05"]
[EventType "swiss"]
[EventCountry "TUR"]
[SourceTitle "playchess.com"]
[Source "ChessBase"]
[SourceQuality "1"]
[TimeControl "40/5400+30:1800+30"]

1. e4 {[%emt 0:00:30]} c6 {[%emt 0:00:30]} 2. d4 {[%emt 0:00:30]} d5 {[%emt 0:00:30]} 3. Nc3 {[%emt 0:00:00]} dxe4 {[%emt 0:00:00]} 4. Nxe4 {[%emt 0:00:00]} Bf5 {[%emt 0:00:00]} 5. Ng3 {[%emt 0:00:30]} Bg6 {[%emt 0:00:00]} 6. h4 {[%emt 0:00:00]} h6 {[%emt 0:00:00]} 7. Nf3 {[%emt 0:00:00]} e6 {[%emt 0:00:00]} 8. Ne5 {[%emt 0:00:30]} Bh7 {[%emt 0:00:00]} 9. Bd3 {[%emt 0:01:30]} Bxd3 {[%emt 0:00:30]} 10. Qxd3 {[%emt 0:00:00]} Nf6 {[%emt 0:00:30]} 11. Bd2 {[%emt 0:03:00]} Be7 {[%emt 0:03:30] B19: Classical Caro-Kann: 4...Bf5 main line} 12. O-O-O {[%emt 0:01:30]} Nbd7 {[%emt 0:06:30]} 13. f4 {[%emt 0:01:30]} Qc7 {[%emt 0:01:30] LiveBook: 4 Games} 14. Kb1 {[%emt 0:04:30]} (14. Ne4 Nxe4 15. Qxe4 Nf6 16. Qf3 g6 17. Kb1 h5 18. c4 Rc8 19. Bc3 b5 20. d5 cxd5 21. cxd5 Nxd5 22. Rxd5 exd5 23. Qxd5 {1-0 (29) Saric,I (2652)-Navara,D (2725) Tallinn 2016}) 14... Rf8 {[%emt 0:00:30]} 15. Rhe1 $146 {[%emt 0:06:30]} ({Predecessor:} 15. f5 O-O-O 16. Qe2 Nxe5 17. dxe5 Nd5 18. Qe4 Kb8 19. c4 Nb4 20. f6 gxf6 21. exf6 {1-0 (46) Gruenfeld,Y (2448)-Duchko,U Opatija 2014}) 15... O-O-O {[%emt 0:00:30]} 16. Qf3 {[%emt 0:00:30]} c5 {[%emt 0:05:30]} 17. Qa3 {[%emt 0:08:30]} Kb8 {[%emt 0:02:30]} 18. Ba5 {[%emt 0:09:30]} b6 {[%emt 0:04:30]} 19. Qf3 {[%emt 0:03:30]} (19. Bd2 $11 {remains equal.}) 19... Nxe5 {[%emt 0:07:30]} 20. fxe5 {[%emt 0:01:30]} Ng8 {[%emt 0:05:30]} 21. Bc3 {[%emt 0:02:30]} cxd4 {[%emt 0:00:30]} 22. Bxd4 {[%emt 0:01:30]} Bxh4 {[%emt 0:01:30]} 23. Bc3 {[%emt 0:01:30]} Ne7 {[%emt 0:08:30]} 24. Bb4 {[%emt 0:02:30]} Bxg3 {[%emt 0:00:30]} 25. Qxg3 {[%emt 0:01:30]} Nf5 {[%emt 0:00:30]} 26. Qf3 {[%emt 0:08:30]} Rxd1+ {[%emt 0:00:30]} 27. Rxd1 {[%emt 0:00:30]} Rc8 {[%emt 0:02:30]} 28. c3 {[%emt 0:02:30]} Qb7 {[%emt 0:02:30]} 29. Qe2 {[%emt 0:07:30]} Ng3 {[%emt 0:02:30]} 30. Qg4 {[%emt 0:08:30]} Nf5 $2 {[%emt 0:06:30]} (30... Qxg2 $19 31. Qxg7 Qe4+ 32. Ka1 Nf5) 31. Qe2 {[%emt 0:01:30]} h5 {[%emt 0:02:30]} 32. a4 {[%emt 0:08:18]} h4 {[%emt 0:00:30]} 33. Rd3 {[%emt 0:02:45]} a5 {[%emt 0:00:30]} 34. Ba3 {[%emt 0:01:25]} Qc6 {[%emt 0:01:30]} 35. Qd2 {[%emt 0:01:43]} Qe4 {[%emt 0:04:30]} 36. Bd6+ {[%emt 0:05:46]} Kb7 {[%emt 0:00:00]} 37. b3 {[%emt 0:01:49]} g5 {[%emt 0:01:00]} 38. Kb2 $19 {[%emt 0:01:34]} (38. Ka2 $142 g4 39. Ba3) 38... g4 {[%emt 0:00:00]} 39. c4 {[%emt 0:00:19]} g3 {[%emt 0:01:00]} 40. c5 {[%emt 0:00:00]} h3 {[%emt 0:00:00]} 41. cxb6 {[%emt 0:02:21]} Qxg2 {[%emt 0:01:00]} 0-1